fUSD/lending_fUSD_20250206
["ID","MTS","AMOUNT","RATE_DAILY","PERIOD"]
[351925242,1738846259723,-500.0,0.00019315,3]
[351925243,1738846259732,-500.0,0.00019315,3]
[351925244,1738846259742,-500.43183029,0.00019315,3]
[351925245,1738846259752,-500.0,0.00019315,3]
[351925246,1738846259762,-500.0,0.00019315,3]
[351925247,1738846259772,-570.54,0.00019315,3]
[351925248,1738846259782,-500.0,0.00019315,3]
[351925249,1738846259792,-885.21,0.00019315,3]
[351925250,1738846259802,-709.25,0.00019315,3]
[351925251,1738846259812,-500.0,0.00019315,3]
[351925252,1738846259821,-500.0,0.00019315,3]
[351925253,1738846259830,-500.0,0.00019315,3]
[351925254,1738846259840,-500.0,0.00019315,3]
[351925255,1738846259849,-500.0,0.00019315,3]
[351925256,1738846259859,-500.0,0.00019315,3]
[351925257,1738846259869,-500.0,0.00019315,3]
[351925258,1738846259879,-505.93038607,0.00019315,3]
[351925259,1738846259889,-500.0,0.00019315,3]
[351925260,1738846259899,-500.0,0.00019315,3]
[351925261,1738846259908,-580.42,0.00019315,3]
[351925262,1738846259919,-717.82,0.00019315,3]
[351925263,1738846259929,-500.0,0.00019315,3]
[351925264,1738846259939,-500.0,0.00019315,3]
[351925265,1738846259949,-500.0,0.00019315,3]
[351925266,1738846259959,-500.0,0.00019315,3]
[351925267,1738846259969,-1096.32,0.00019315,3]
[351925268,1738846259979,-500.95055856,0.00019315,3]
[351925269,1738846259989,-638.14,0.00019315,3]
[351925270,1738846259999,-513.480863,0.00019315,3]
[351925271,1738846260012,-500.0,0.00019315,3]
[351925272,1738846260022,-500.0,0.00019315,3]
[351925273,1738846260033,-500.0,0.00019315,3]
[351925274,1738846260043,-987.02,0.00019315,3]
[351925275,1738846260054,-500.0,0.00019315,3]
[351925276,1738846260064,-500.0,0.00019315,3]
[351925277,1738846260075,-500.0,0.00019315,3]
[351925278,1738846260085,-500.0,0.00019315,3]
[351925279,1738846260095,-716.43,0.00019315,3]
[351925280,1738846260105,-545.84,0.00019315,3]
[351925281,1738846260115,-388.95674528,0.00019315,3]
[351925282,1738846260125,-500.0,0.00019315,3]
[351925283,1738846260134,-500.0,0.00019315,3]
[351925284,1738846260145,-500.0,0.00019315,3]
[351925285,1738846260155,-500.0,0.00019315,3]
[351925286,1738846260165,-766.62,0.00019315,3]
[351925287,1738846260174,-500.0,0.00019315,3]
[351925288,1738846260184,-500.0,0.00019315,3]
[351925289,1738846260195,-586.84,0.00019315,3]
[351925290,1738846260204,-785.91,0.00019315,3]
[351925291,1738846260214,-500.0,0.00019315,3]
[351925292,1738846260224,-500.0,0.00019315,3]
[351925293,1738846260233,-322.84158487,0.00019315,3]
[351925294,1738846260243,-512.11002416,0.00019315,3]
[351925295,1738846260253,-500.0,0.00019315,3]
[351925296,1738846260263,-500.0,0.00019315,3]
[351925297,1738846260273,-537.61625439,0.00019315,3]
[351925298,1738846260283,-1138.94,0.00019315,3]
[351925299,1738846260292,-737.02,0.00019315,3]
[351925300,1738846260302,-500.0,0.00019315,3]
[351925301,1738846260311,-500.0,0.00019315,3]
[351925302,1738846260320,-1288.77,0.00019315,3]
[351925303,1738846260330,-500.0,0.00019315,3]
[351925304,1738846260339,-500.0,0.00019315,3]
[351925305,1738846260348,-757.62,0.00019315,3]
[351925306,1738846260358,-500.0,0.00019315,3]
[351925307,1738846260367,-1313.88,0.00019315,3]
[351925308,1738846260377,-500.0,0.00019315,3]
[351925309,1738846260386,-500.0,0.00019315,3]
[351925310,1738846260396,-500.0,0.00019315,7]
[351925311,1738846260405,-500.0,0.00019315,3]
[351925312,1738846260414,-500.0,0.00019315,3]
[351925313,1738846260424,-500.0,0.00019315,3]
[351925314,1738846260433,-500.0,0.00019315,3]
[351925315,1738846260444,-500.0,0.00019315,3]
[351925316,1738846260453,-500.0,0.00019315,3]
[351925317,1738846260463,-502.5544929,0.00019315,3]
[351925318,1738846260472,-503.18359733,0.00019315,3]
[351925319,1738846260482,-519.86858643,0.00019315,3]
[351925320,1738846260492,-953.77,0.00019315,3]
[351925321,1738846260502,-930.79,0.00019315,3]
[351925322,1738846260512,-500.0,0.00019315,3]
[351925323,1738846260522,-500.85933537,0.00019315,3]
[351925324,1738846260532,-500.0,0.00019315,3]
[351925325,1738846260542,-500.0,0.00019315,3]
[351925326,1738846260552,-635.478512,0.00019315,3]
[351925327,1738846260566,-1252.47,0.00019315,3]
[351925328,1738846260576,-500.0,0.00019315,3]
[351925329,1738846260586,-500.0,0.00019315,3]
[351925330,1738846260595,-500.0,0.00019315,3]
[351925331,1738846260607,-710.3,0.00019315,3]
[351925332,1738846260617,-500.0,0.00019315,3]
[351925333,1738846260627,-500.0,0.00019315,3]
[351925334,1738846260638,-500.0,0.00019315,3]
[351925335,1738846260649,-500.0,0.00019315,3]
[351925336,1738846260658,-500.0,0.00019315,3]
[351925337,1738846260667,-500.0,0.00019315,2]
[351925338,1738846260677,-500.0,0.00019315,3]
[351925339,1738846260688,-500.0,0.00019315,3]
[351925340,1738846260698,-1072.89,0.00019315,3]
[351925341,1738846260708,-1642.77,0.00019315,3]
[351925342,1738846260718,-500.0,0.00019315,3]
[351925343,1738846260729,-828.24,0.00019315,3]
[351925344,1738846260738,-500.0,0.00019315,3]
[351925345,1738846260748,-500.0,0.00019315,3]
[351925346,1738846260758,-508.3448504,0.00019315,3]
[351925347,1738846260768,-500.0,0.00019315,3]
[351925348,1738846260778,-500.0,0.00019315,3]
[351925349,1738846260788,-500.0,0.00019315,3]
[351925350,1738846260798,-500.0,0.00019315,3]
[351925351,1738846260808,-1496.69,0.00019315,3]
[351925352,1738846260818,-500.0,0.00019315,3]
[351925353,1738846260827,-641.51,0.00019315,3]
[351925354,1738846260838,-500.0,0.00019315,3]
[351925355,1738846260847,-500.0,0.00019315,3]
[351925356,1738846260857,-865.92,0.00019315,3]
[351925357,1738846260867,-500.0,0.00019315,3]
[351925358,1738846260877,-501.41422257,0.00019315,3]
[351925359,1738846260886,-500.0,0.00019315,3]
[351925360,1738846260896,-934.46,0.00019315,3]
[351925361,1738846260905,-500.0,0.00019315,3]
[351925362,1738846260914,-501.66708305,0.00019315,3]
[351925363,1738846260923,-500.0,0.00019315,3]
[351925364,1738846260932,-500.0,0.00019315,3]
[351925365,1738846260942,-500.0,0.00019315,3]
[351925366,1738846260951,-1164.35,0.00019315,3]
[351925367,1738846260961,-1071.44,0.00019315,3]
[351925368,1738846260970,-503.76091273,0.00019315,3]
[351925369,1738846260979,-500.0,0.00019315,3]
[351925370,1738846260989,-525.24665802,0.00019315,3]
[351925371,1738846260998,-151.0,0.00019315,2]
[351925372,1738846261008,-151.0,0.00019315,2]
[351925373,1738846261018,-500.0,0.00019315,3]
[351925374,1738846261027,-500.0,0.00019315,3]
[351925375,1738846261037,-151.0,0.00019315,2]
[351925376,1738846261047,-500.0,0.00019315,3]
[351925377,1738846261056,-500.0,0.00019315,3]
[351925378,1738846261066,-860.79,0.00019315,3]
[351925379,1738846261075,-524.69,0.00019315,3]
[351925380,1738846261085,-505.90778457,0.00019315,3]
[351925381,1738846261094,-2259.32,0.00019315,3]
[351925382,1738846261104,-500.4673925,0.00019315,3]
[351925383,1738846261114,-1084.21,0.00019315,3]
[351925384,1738846261124,-500.0,0.00019315,3]
[351925385,1738846261133,-500.0,0.00019315,3]
[351925386,1738846261143,-500.0,0.00019315,3]
[351925387,1738846261152,-500.0,0.00019315,3]
[351925388,1738846261162,-518.98,0.00019315,3]
[351925389,1738846261171,-500.0,0.00019315,3]
[351925390,1738846261181,-342.773697,0.00019315,3]
[351925391,1738846261191,-500.0,0.00019315,3]
[351925392,1738846261201,-500.0,0.00019315,3]
[351925393,1738846261210,-500.0,0.00019315,3]
[351925394,1738846261219,-500.0,0.00019315,3]
[351925395,1738846261229,-501.80396869,0.00019315,3]
[351925396,1738846261238,-814.33,0.00019315,3]
[351925397,1738846261248,-500.0,0.00019315,3]
[351925398,1738846261258,-500.0,0.00019315,3]
[351925399,1738846261267,-698.27,0.00019315,3]
[351925400,1738846261276,-500.0,0.00019315,3]
[351925401,1738846261286,-500.0,0.00019315,3]
[351925402,1738846261295,-548.00675095,0.00019315,3]
[351925403,1738846261305,-1051.97,0.00019315,3]
[351925404,1738846261314,-509.7895694,0.00019315,3]
[351925405,1738846261323,-765.65,0.00019315,3]
[351925406,1738846261332,-500.0,0.00019315,3]
[351925407,1738846261342,-500.0,0.00019315,3]
[351925408,1738846261351,-500.0,0.00019315,3]
[351925409,1738846261361,-500.0,0.00019315,3]
[351925410,1738846261370,-500.0,0.00019315,3]
[351925411,1738846261380,-442.78704747,0.00019315,3]
[351925412,1738846261390,-500.0,0.00019315,3]
[351925413,1738846261399,-850.52,0.00019315,3]
[351925414,1738846261408,-500.0,0.00019315,3]
[351925415,1738846261418,-500.0,0.00019315,3]
[351925416,1738846261427,-500.0,0.00019315,3]
[351925417,1738846261436,-1232.26,0.00019315,3]
[351925418,1738846261446,-500.0,0.00019315,3]
[351925419,1738846261455,-505.66623674,0.00019315,3]
[351925420,1738846261465,-500.0,0.00019315,3]
[351925421,1738846261474,-151.0,0.00019315,2]
[351925422,1738846261484,-201.419342,0.00019315,2]
[351925423,1738846261493,-780.01,0.00019315,3]
[351925424,1738846261503,-500.0,0.00019315,3]
[351925425,1738846261512,-500.0,0.00019315,3]
[351925426,1738846261521,-1926.69,0.00019315,3]
[351925427,1738846261530,-2139.79,0.00019315,3]
[351925428,1738846261540,-500.0,0.00019315,3]
[351925429,1738846261549,-500.0,0.00019315,3]
[351925430,1738846261559,-500.0,0.00019315,3]
[351925431,1738846261572,-500.0,0.00019315,3]
[351925432,1738846261582,-504.53108556,0.00019315,3]
[351925433,1738846261591,-151.0,0.00019315,2]
[351925434,1738846261601,-500.0,0.00019315,3]
[351925435,1738846261610,-502.10615212,0.00019315,3]
[351925436,1738846261619,-151.0,0.00019315,2]
[351925437,1738846261628,-1195.07,0.00019315,3]
[351925438,1738846261640,-227.781821,0.00019315,2]
[351925439,1738846261808,-671.0,0.00019315,3]
[351925440,1738846261833,-500.0,0.00019315,3]
[351925441,1738846261842,-500.0,0.00019315,3]
[351925442,1738846261852,-500.0,0.00019315,3]
[351925443,1738846261862,-500.0,0.00019315,3]
[351925444,1738846261872,-768.36,0.00019315,3]
[351925445,1738846261882,-500.0,0.00019315,3]
[351925446,1738846261892,-500.0,0.00019315,3]
[351925447,1738846261902,-500.0,0.00019315,3]
[351925448,1738846261912,-500.0,0.00019315,3]
[351925449,1738846261922,-955.69,0.00019315,3]
[351925450,1738846261932,-500.0,0.00019315,3]
[351925451,1738846261943,-560.5961831,0.00019315,3]
[351925452,1738846261953,-500.0,0.00019315,3]
[351925453,1738846261963,-1786.28,0.00019315,3]
[351925454,1738846261973,-500.0,0.00019315,3]
[351925455,1738846261983,-1358.09,0.00019315,3]
[351925456,1738846261993,-960.54,0.00019315,3]
[351925457,1738846262003,-500.0,0.00019315,3]
[351925458,1738846262013,-1261.92,0.00019315,3]
[351925459,1738846262023,-837.85,0.00019315,3]
[351925460,1738846262033,-1430.17,0.00019315,3]
[351925461,1738846262042,-500.0,0.00019315,3]
[351925462,1738846262052,-500.0,0.00019315,3]
[351925463,1738846262062,-500.0,0.00019315,3]
[351925464,1738846262072,-1032.7,0.00019315,3]
[351925465,1738846262083,-500.0,0.00019315,3]
[351925466,1738846262093,-500.0,0.00019315,3]
[351925467,1738846262103,-500.0,0.00019315,3]
[351925468,1738846262114,-755.51,0.00019315,3]
[351925469,1738846262124,-500.0,0.00019315,3]
[351925470,1738846262133,-599.97,0.00019315,3]
[351925471,1738846262143,-1498.88,0.00019315,3]
[351925472,1738846262153,-1448.74,0.00019315,3]
[351925473,1738846262162,-500.0,0.00019315,3]
[351925474,1738846262172,-500.0,0.00019315,3]
[351925475,1738846262181,-500.0,0.00019315,3]
[351925476,1738846262190,-503.70204028,0.00019315,3]
[351925477,1738846262199,-628.89370761,0.00019315,3]
[351925478,1738846262209,-4363.74,0.00019315,3]
[351925479,1738846262219,-502.01900831,0.00019315,3]
[351925480,1738846262229,-500.0,0.00019315,3]
[351925481,1738846262241,-1156.18,0.00019315,3]
[351925482,1738846262250,-613.02197224,0.00019315,3]
[351925483,1738846262260,-500.0,0.00019315,3]
[351925484,1738846262271,-1082.61,0.00019315,3]
[351925485,1738846262280,-500.0,0.00019315,3]
[351925486,1738846262290,-580.8983735,0.00019315,3]
[351925487,1738846262299,-500.0,0.00019315,3]
[351925488,1738846262308,-502.12080291,0.00019315,30]
[351925489,1738846262318,-500.0,0.00019315,3]
[351925490,1738846262327,-500.0,0.00019315,3]
[351925491,1738846262336,-500.0,0.00019315,3]
[351925492,1738846262345,-500.0,0.00019315,3]
[351925493,1738846262354,-852.8,0.00019315,3]
[351925494,1738846262364,-500.0,0.00019315,3]
[351925495,1738846262373,-1627.16,0.00019315,3]
[351925496,1738846262383,-500.0,0.00019315,3]
[351925497,1738846262394,-1406.61,0.00019315,3]
[351925498,1738846262403,-502.51348251,0.00019315,3]
[351925499,1738846262413,-533.11101326,0.00019315,3]
[351925500,1738846262423,-500.0,0.00019315,3]
[351925501,1738846262432,-500.0,0.00019315,3]
[351925502,1738846262442,-500.0,0.00019315,3]
[351925503,1738846262451,-2737.82,0.00019315,3]
[351925504,1738846262460,-500.0,0.00019315,3]
[351925505,1738846262469,-345.60949126,0.00019315,3]
[351925506,1738846262478,-500.0,0.00019315,3]
[351925507,1738846262487,-500.0,0.00019315,3]
[351925508,1738846262496,-500.0,0.00019315,3]
[351925509,1738846262506,-1392.11,0.00019315,3]
[351925510,1738846262515,-500.0,0.00019315,3]
[351925511,1738846262525,-500.0,0.00019315,3]
[351925512,1738846262535,-1960.89,0.00019315,3]
[351925513,1738846262544,-500.0,0.00019315,3]
[351925514,1738846262554,-500.0,0.00019315,3]
[351925515,1738846262565,-1194.79,0.00019315,3]
[351925516,1738846262576,-500.0,0.00019315,3]
[351925517,1738846262585,-500.0,0.00019315,3]
[351925518,1738846262594,-500.0,0.00019315,3]
[351925519,1738846262606,-500.0,0.00019315,3]
[351925520,1738846262615,-500.0,0.00019315,3]
[351925521,1738846262625,-500.0,0.00019315,3]
[351925522,1738846262634,-500.0,0.00019315,3]
[351925523,1738846262644,-500.0,0.00019315,3]
[351925524,1738846262653,-500.0,0.00019315,3]
[351925525,1738846262663,-500.0,0.00019315,3]
[351925526,1738846262672,-1352.45,0.00019315,3]
[351925527,1738846262682,-500.0,0.00019315,3]
[351925528,1738846262692,-1842.88,0.00019315,3]
[351925529,1738846262702,-509.38576358,0.00019315,3]
[351925530,1738846262713,-500.0,0.00019315,3]
[351925531,1738846262724,-500.0,0.00019315,3]
[351925532,1738846262736,-500.0,0.00019315,3]
[351925533,1738846262747,-500.0,0.00019315,3]
[351925534,1738846262757,-500.0,0.00019315,3]
[351925535,1738846262767,-500.0,0.00019315,3]
[351925536,1738846262776,-2170.82,0.00019315,3]
[351925537,1738846262787,-1035.43,0.00019315,3]
[351925538,1738846262796,-813.75,0.00019315,3]
[351925539,1738846262805,-506.40534846,0.00019315,3]
[351925540,1738846262815,-500.0,0.00019315,3]
[351925541,1738846262824,-500.0,0.00019315,3]
[351925542,1738846262834,-500.0,0.00019315,3]
[351925543,1738846262843,-500.0,0.00019315,3]
[351925544,1738846262853,-500.0,0.00019315,3]
[351925545,1738846262862,-635.58,0.00019315,3]
[351925546,1738846262872,-502.83,0.00019315,3]
[351925547,1738846262881,-500.0,0.00019315,3]
[351925548,1738846262896,-1937.94,0.00019315,3]
[351925549,1738846262905,-965.78,0.00019315,3]
[351925550,1738846262915,-500.0,0.00019315,3]
[351925551,1738846262924,-500.0,0.00019315,3]
[351925552,1738846262934,-503.36,0.00019315,3]
[351925553,1738846262944,-500.0,0.00019315,3]
[351925554,1738846262954,-538.72,0.00019315,3]
[351925555,1738846262964,-500.0,0.00019315,3]
[351925556,1738846262973,-500.0,0.00019315,3]
[351925557,1738846262983,-1191.19,0.00019315,3]
[351925558,1738846262992,-646.97,0.00019315,3]
[351925559,1738846263002,-676.42,0.00019315,3]
[351925560,1738846263012,-500.0,0.00019315,3]
[351925561,1738846263022,-1469.68,0.00019315,3]
[351925562,1738846263032,-487.57288583,0.00019315,3]
[351925563,1738846263043,-1167.19,0.00019315,3]
[351925564,1738846263053,-500.0,0.00019315,3]
[351925565,1738846263063,-605.91,0.00019315,3]
[351925566,1738846263073,-2422.146487,0.00019315,2]
[351925567,1738846263083,-2422.146487,0.00019315,2]
[351925568,1738846263093,-1814.25,0.00019315,3]
[351925569,1738846263103,-2422.146487,0.00019315,2]
[351925570,1738846263112,-2422.146487,0.00019315,2]
[351925571,1738846263121,-178.417995,0.00019315,2]
[351925572,1738846263131,-500.0,0.00019315,3]
[351925573,1738846263140,-178.417995,0.00019315,2]
[351925574,1738846263150,-178.417995,0.00019315,2]
[351925575,1738846263159,-500.0,0.00019315,3]
[351925576,1738846263169,-178.417995,0.00019315,2]
[351925577,1738846263178,-500.0,0.00019315,3]
[351925578,1738846263188,-2422.146487,0.00019315,2]
[351925579,1738846263199,-2422.146487,0.00019315,2]
[351925580,1738846263208,-500.0,0.00019315,3]
[351925581,1738846263219,-2422.146487,0.00019315,2]
[351925582,1738846263228,-500.0,0.00019315,3]
[351925583,1738846263238,-2422.146493,0.00019315,2]
[351925584,1738846263248,-500.0,0.00019315,3]
[351925585,1738846263258,-353.81766828,0.00019315,3]
[351925586,1738846263268,-178.417995,0.00019315,2]
[351925587,1738846263277,-500.0,0.00019315,3]
[351925588,1738846263286,-178.417995,0.00019315,2]
[351925589,1738846263296,-178.417995,0.00019315,2]
[351925590,1738846263305,-500.0,0.00019315,3]
[351925591,1738846263315,-2990.99,0.00019315,3]
[351925592,1738846263325,-178.417987,0.00019315,2]
[351925593,1738846263335,-500.0,0.00019315,3]
[351925594,1738846263344,-804.35,0.00019315,3]
[351925595,1738846263353,-500.0,0.00019315,3]
[351925596,1738846263363,-1583.47,0.00019315,3]
[351925597,1738846263372,-500.0,0.00019315,3]
[351925598,1738846263382,-706.68,0.00019315,3]
[351925599,1738846263391,-500.0,0.00019315,3]
[351925600,1738846263400,-500.0,0.00019315,3]
[351925601,1738846263410,-500.0,0.00019315,3]
[351925602,1738846263419,-1146.0,0.00019315,3]
[351925603,1738846263429,-500.70203531,0.00019315,3]
[351925604,1738846263440,-500.0,0.00019315,3]
[351925605,1738846263450,-500.0,0.00019315,3]
[351925606,1738846263460,-500.0,0.00019315,3]
[351925607,1738846263470,-500.0,0.00019315,3]
[351925608,1738846263480,-665.19,0.00019315,3]
[351925609,1738846263489,-500.0,0.00019315,3]
[351925610,1738846263500,-500.0,0.00019315,3]
[351925611,1738846263509,-1178.74,0.00019315,3]
[351925612,1738846263519,-500.0,0.00019315,3]
[351925613,1738846263529,-500.0,0.00019315,3]
[351925614,1738846263538,-1057.88,0.00019315,3]
[351925615,1738846263548,-500.0,0.00019315,3]
[351925616,1738846263558,-500.0,0.00019315,3]
[351925617,1738846263572,-500.0,0.00019315,3]
[351925618,1738846263583,-500.0,0.00019315,3]
[351925619,1738846263593,-500.0,0.00019315,3]
[351925620,1738846263605,-561.93246369,0.00019315,3]
[351925621,1738846263615,-998.49,0.00019315,3]
[351925622,1738846263625,-510.0921703,0.00019315,3]
[351925623,1738846263636,-837.88,0.00019315,3]
[351925624,1738846263647,-1087.83,0.00019315,3]
[351925625,1738846263657,-215.05449811,0.00019315,3]
[351925626,1738846263667,-500.0,0.00019315,3]
[351925627,1738846263676,-609.22,0.00019315,3]
[351925628,1738846263686,-500.0,0.00019315,3]
[351925629,1738846263697,-500.0,0.00019315,3]
[351925630,1738846263706,-500.0,0.00019315,3]
[351925631,1738846263716,-500.0,0.00019315,3]
[351925632,1738846263726,-500.0,0.00019315,3]
[351925633,1738846263736,-500.0,0.00019315,3]
[351925634,1738846263746,-1149.76,0.00019315,3]
[351925635,1738846263756,-223.21724798,0.00019315,3]
[351925636,1738846263766,-500.0,0.00019315,3]
[351925637,1738846263777,-500.0,0.00019315,3]
[351925638,1738846263787,-500.0,0.00019315,3]
[351925639,1738846263797,-499.19488184,0.00019315,3]
[351925640,1738846263807,-500.0,0.00019315,3]
[351925641,1738846263817,-500.0,0.00019315,3]
[351925642,1738846263827,-500.0,0.00019315,3]
[351925643,1738846263838,-500.0,0.00019315,3]
[351925644,1738846263848,-667.19,0.00019315,3]
[351925645,1738846263858,-500.0,0.00019315,3]
[351925646,1738846263868,-500.0,0.00019315,3]
[351925647,1738846263877,-848.56,0.00019315,3]
[351925648,1738846263887,-917.63,0.00019315,3]
[351925649,1738846263898,-500.0,0.00019315,3]
[351925650,1738846263907,-500.0,0.00019315,3]
[351925651,1738846263917,-500.0,0.00019315,3]
[351925652,1738846263927,-500.0,0.00019315,3]
[351925653,1738846263938,-500.0,0.00019315,3]
[351925654,1738846263949,-1882.91,0.00019315,3]
[351925655,1738846263959,-471.55421426,0.00019315,3]
[351925656,1738846263968,-357.31687203,0.00019315,3]
[351925657,1738846263979,-1478.32,0.00019315,3]
[351925658,1738846263989,-1603.73,0.00019315,3]
[351925659,1738846264000,-500.0,0.00019315,3]
[351925660,1738846264010,-501.57706018,0.00019315,3]
[351925661,1738846264020,-1082.14,0.00019315,3]
[351925662,1738846264030,-580.3,0.00019315,3]
[351925663,1738846264040,-776.5,0.00019315,3]
[351925664,1738846264049,-500.0,0.00019315,3]
[351925665,1738846264059,-1297.86,0.00019315,3]
[351925666,1738846264069,-500.772714,0.00019315,3]
[351925667,1738846264079,-500.0,0.00019315,3]
[351925668,1738846264090,-500.0,0.00019315,3]
[351925669,1738846264100,-500.0,0.00019315,3]
[351925670,1738846264110,-937.84,0.00019315,3]
[351925671,1738846264119,-1684.26,0.00019315,3]
[351925672,1738846264129,-1420.63,0.00019315,3]
[351925673,1738846264138,-500.0,0.00019315,2]
[351925674,1738846264147,-500.0,0.00019315,3]
[351925675,1738846264157,-1096.75,0.00019315,3]
[351925676,1738846264167,-500.0,0.00019315,3]
[351925677,1738846264177,-854.25,0.00019315,3]
[351925678,1738846264186,-500.0,0.00019315,3]
[351925679,1738846264198,-500.0,0.00019315,3]
[351925680,1738846264208,-500.0,0.00019315,3]
[351925681,1738846264218,-500.0,0.00019315,3]
[351925682,1738846264228,-621.7,0.00019315,2]
[351925683,1738846264238,-500.0,0.00019315,3]
[351925684,1738846264247,-151.0,0.00019315,2]
[351925685,1738846264257,-500.0,0.00019315,3]
[351925686,1738846264267,-151.0,0.00019315,2]
[351925687,1738846264276,-500.0,0.00019315,3]
[351925688,1738846264285,-747.61,0.00019315,3]
[351925689,1738846264295,-151.0,0.00019315,2]
[351925690,1738846264304,-151.0,0.00019315,2]
[351925691,1738846264314,-500.0,0.00019315,3]
[351925692,1738846264324,-500.0,0.00019315,3]
[351925693,1738846264334,-199.02349448,0.00019319,2]
[351925694,1738846264344,-310.11773278,0.0001933,2]
[351925695,1738846264353,-500.0,0.00019339,2]
[351925696,1738846264363,-196.41,0.00019383,2]
[351925697,1738846264372,-179.62507921,0.000194,2]
[351925698,1738846264382,-7900.0,0.000194,7]
[351925699,1738846264391,-2290.00275165,0.00019408,2]
[351925700,1738846264401,-353.61,0.0001942,2]
[351925701,1738846264411,-310.11773278,0.00019437,2]
[351925702,1738846264421,-500.0,0.00019439,2]
[351925703,1738846264431,-500.0,0.00019451,3]
[351925704,1738846264442,-500.0,0.00019451,3]
[351925705,1738846264452,-1717.09,0.00019451,3]
[351925706,1738846264463,-500.0,0.00019451,3]
[351925707,1738846264474,-953.93,0.00019451,3]
[351925708,1738846264485,-1626.26,0.00019451,3]
[351925709,1738846264496,-554.28,0.00019451,3]
[351925710,1738846264507,-1964.76,0.00019451,3]
[351925711,1738846264518,-1149.2,0.00019451,3]
[351925712,1738846264529,-1307.9,0.00019451,3]
[351925713,1738846264539,-1499.72,0.00019451,3]
[351925714,1738846264550,-1105.83,0.00019451,3]
[351925715,1738846264563,-1313.9,0.00019451,3]
[351925716,1738846264576,-1653.1,0.00019451,3]
[351925717,1738846264587,-1679.97,0.00019451,3]
[351925718,1738846264597,-1023.49,0.00019451,3]
[351925719,1738846264610,-1052.68,0.00019451,3]
[351925720,1738846264620,-1314.58,0.00019451,3]
[351925721,1738846264630,-506.49,0.00019451,3]
[351925722,1738846264640,-1120.46,0.00019451,3]
[351925723,1738846264650,-1386.85,0.00019451,3]
[351925724,1738846264661,-1289.35,0.00019451,3]
[351925725,1738846264671,-1351.2,0.00019451,3]
[351925726,1738846264681,-1164.39,0.00019451,3]
[351925727,1738846264695,-666.0,0.00019451,2]
[351925728,1738846264706,-500.0,0.00019452,3]
[351925729,1738846264716,-500.0,0.00019452,3]
[351925730,1738846264726,-500.0,0.00019452,3]
[351925731,1738846264737,-500.0,0.00019452,3]
[351925732,1738846264747,-500.0,0.00019452,3]
[351925733,1738846264757,-500.0,0.00019452,3]
[351925734,1738846264766,-500.0,0.00019452,3]
[351925735,1738846264776,-500.0,0.00019452,3]
[351925736,1738846264786,-500.0,0.00019452,3]
[351925737,1738846264795,-500.0,0.00019452,3]
[351925738,1738846264806,-500.0,0.00019452,3]
[351925739,1738846264816,-500.0,0.00019452,3]
[351925740,1738846264826,-500.0,0.00019452,3]
[351925741,1738846264836,-500.0,0.00019452,3]